[Event "Titled Tuesday Blitz April 12 Late 2022"]
[White "Rozman, Levy"]
[Black "Melkumyan, Hrant"]
[WhiteFideId "2039877"]
[BlackFideId "13302485"]
[WhiteElo "2376"]
[BlackElo "2604"]
[Result "0-1"]
[Round "03"]
[TimeControl "180+1"]
[Date "2022.04.12"]
[WhiteClock "0:00:20"]
[BlackClock "0:01:27"]

1. d4 {[%clk 0:03:00]}  d5 {[%clk 0:02:55]} 2. Bg5 {[%clk 0:02:55]}  c6 {[%clk 0:02:50]} 3. Nc3 {[%clk 0:02:53]}  h6 {[%clk 0:02:43]} 4. Bh4 {[%clk 0:02:53]}  Bf5 {[%clk 0:02:41]} 5. f3 {[%clk 0:02:50]}  Nf6 {[%clk 0:02:38]} 6. Qd2 {[%clk 0:02:46]}  Nbd7 {[%clk 0:02:38]} 7. g4 {[%clk 0:02:35]}  Bh7 {[%clk 0:02:36]} 8. Bg3 {[%clk 0:02:35]}  e6 {[%clk 0:02:33]} 9. h4 {[%clk 0:02:35]}  Qa5 {[%clk 0:02:31]} 10. a3 {[%clk 0:02:31]}  c5 {[%clk 0:02:27]} 11. e3 {[%clk 0:02:27]}  a6 {[%clk 0:02:21]} 12. Bd3 {[%clk 0:02:08]}  Bxd3 {[%clk 0:02:17]} 13. Qxd3 {[%clk 0:02:07]}  Rc8 {[%clk 0:02:18]} 14. Ne2 {[%clk 0:02:04]}  cxd4 {[%clk 0:02:09]} 15. exd4 {[%clk 0:02:03]}  Qb6 {[%clk 0:02:09]} 16. Kf2 {[%clk 0:01:43]}  Bd6 {[%clk 0:02:07]} 17. Bxd6 {[%clk 0:01:40]}  Qxd6 {[%clk 0:02:07]} 18. Rae1 {[%clk 0:01:29]}  Ng8 {[%clk 0:01:50]} 19. Ng3 {[%clk 0:01:09]}  Ne7 {[%clk 0:01:51]} 20. Nd1 {[%clk 0:00:52]}  Rc6 {[%clk 0:01:47]} 21. c3 {[%clk 0:00:52]}  Kd8 {[%clk 0:01:46]} 22. Ne3 {[%clk 0:00:39]}  Kc8 {[%clk 0:01:46]} 23. Nh5 {[%clk 0:00:33]}  g6 {[%clk 0:01:44]} 24. Ng3 {[%clk 0:00:34]}  Kb8 {[%clk 0:01:44]} 25. g5 {[%clk 0:00:31]}  hxg5 {[%clk 0:01:40]} 26. hxg5 {[%clk 0:00:31]}  Rcc8 {[%clk 0:01:41]} 27. Ng2 {[%clk 0:00:27]}  Nb6 {[%clk 0:01:37]} 28. Rxh8 {[%clk 0:00:22]}  Rxh8 {[%clk 0:01:36]} 29. Rh1 {[%clk 0:00:22]}  Rxh1 {[%clk 0:01:35]} 30. Nxh1 {[%clk 0:00:23]}  Nc4 {[%clk 0:01:33]} 31. Qe2 {[%clk 0:00:24]}  Nf5 {[%clk 0:01:33]} 32. f4 {[%clk 0:00:23]}  Qb6 {[%clk 0:01:29]} 33. b4 {[%clk 0:00:20]}  Nxa3 {[%clk 0:01:28]} 34. Ng3 {[%clk 0:00:21]}  Nxg3 {[%clk 0:01:26]} 35. Kxg3 {[%clk 0:00:21]}  Nb5 {[%clk 0:01:26]} 36. Qe5+ {[%clk 0:00:20]}  Qc7 {[%clk 0:01:27]} 0-1


[Site "https://www.chess.com"]

[Event "Titled Tuesday Blitz April 12 Late 2022"]
[White "Sanchez, Robert"]
[Black "Hardaway, Brewington"]
[WhiteFideId "2034360"]
[BlackFideId "30941849"]
[WhiteElo "2385"]
[BlackElo "1768"]
[Result "1/2-1/2"]
[Round "03"]
[TimeControl "180+1"]
[Date "2022.04.13"]
[WhiteClock "0:00:18"]
[BlackClock "0:00:09"]

1. e4 {[%clk 0:02:59]}  c5 {[%clk 0:02:58]} 2. Nf3 {[%clk 0:02:59]}  g6 {[%clk 0:02:58]} 3. d4 {[%clk 0:02:59]}  cxd4 {[%clk 0:02:57]} 4. Bc4 {[%clk 0:02:59]}  Bg7 {[%clk 0:02:53]} 5. c3 {[%clk 0:02:59]}  Qc7 {[%clk 0:02:52]} 6. Bb3 {[%clk 0:02:54]}  dxc3 {[%clk 0:02:51]} 7. Nxc3 {[%clk 0:02:54]}  Nc6 {[%clk 0:02:48]} 8. Nd5 {[%clk 0:02:48]}  Qd8 {[%clk 0:02:46]} 9. Bf4 {[%clk 0:02:46]}  d6 {[%clk 0:02:46]} 10. O-O {[%clk 0:02:39]}  Nf6 {[%clk 0:02:45]} 11. Nxf6+ {[%clk 0:02:40]}  Bxf6 {[%clk 0:02:44]} 12. Bh6 {[%clk 0:02:40]}  Bg4 {[%clk 0:02:42]} 13. h3 {[%clk 0:02:37]}  Bxf3 {[%clk 0:02:41]} 14. Qxf3 {[%clk 0:02:37]}  Nd4 {[%clk 0:02:35]} 15. Qd1 {[%clk 0:02:30]}  Nxb3 {[%clk 0:02:34]} 16. Qxb3 {[%clk 0:02:29]}  Qd7 {[%clk 0:02:32]} 17. Rac1 {[%clk 0:02:23]}  Bd4 {[%clk 0:02:13]} 18. Rfd1 {[%clk 0:02:17]}  Bb6 {[%clk 0:02:04]} 19. e5 {[%clk 0:02:14]}  Qe6 {[%clk 0:01:37]} 20. exd6 {[%clk 0:01:59]}  Qxb3 {[%clk 0:01:32]} 21. d7+ {[%clk 0:02:00]}  Kd8 {[%clk 0:01:33]} 22. axb3 {[%clk 0:02:00]}  f6 {[%clk 0:01:31]} 23. Be3 {[%clk 0:01:36]}  Bc7 {[%clk 0:00:53]} 24. Bc5 {[%clk 0:01:29]}  Bf4 {[%clk 0:00:50]} 25. Rc4 {[%clk 0:01:20]}  Be5 {[%clk 0:00:45]} 26. Bxa7 {[%clk 0:01:14]}  Bc7 {[%clk 0:00:38]} 27. Bc5 {[%clk 0:01:10]}  e5 {[%clk 0:00:27]} 28. Be7+ {[%clk 0:00:58]}  Kxe7 {[%clk 0:00:28]} 29. Rxc7 {[%clk 0:00:58]}  Rhd8 {[%clk 0:00:26]} 30. Rxb7 {[%clk 0:00:57]}  f5 {[%clk 0:00:22]} 31. b4 {[%clk 0:00:52]}  Ra2 {[%clk 0:00:18]} 32. Rd2 {[%clk 0:00:52]}  Ra1+ {[%clk 0:00:19]} 33. Kh2 {[%clk 0:00:52]}  e4 {[%clk 0:00:19]} 34. Kg3 {[%clk 0:00:51]}  g5 {[%clk 0:00:19]} 35. Rd5 {[%clk 0:00:42]}  Ke6 {[%clk 0:00:16]} 36. Rd2 {[%clk 0:00:33]}  h5 {[%clk 0:00:16]} 37. Rb6+ {[%clk 0:00:32]}  Kf7 {[%clk 0:00:13]} 38. h4 {[%clk 0:00:31]}  f4+ {[%clk 0:00:14]} 39. Kh2 {[%clk 0:00:30]}  g4 {[%clk 0:00:14]} 40. g3 {[%clk 0:00:29]}  e3 {[%clk 0:00:10]} 41. fxe3 {[%clk 0:00:22]}  f3 {[%clk 0:00:09]} 42. Rh6 {[%clk 0:00:20]}  Re1 {[%clk 0:00:07]} 43. Rf2 {[%clk 0:00:17]}  Rxe3 {[%clk 0:00:07]} 44. Rxh5 {[%clk 0:00:17]}  Rxd7 {[%clk 0:00:05]} 45. Rh7+ {[%clk 0:00:15]}  Ke6 {[%clk 0:00:06]} 46. Rxd7 {[%clk 0:00:16]}  Kxd7 {[%clk 0:00:07]} 47. Kg1 {[%clk 0:00:16]}  Re1+ {[%clk 0:00:07]} 48. Rf1 {[%clk 0:00:16]}  Re2 {[%clk 0:00:07]} 49. Rf2 {[%clk 0:00:16]}  Re1+ {[%clk 0:00:08]} 50. Rf1 {[%clk 0:00:17]}  Re2 {[%clk 0:00:08]} 51. Rf2 {[%clk 0:00:17]}  Re5 {[%clk 0:00:09]} 52. Rh2 {[%clk 0:00:16]}  Kc6 {[%clk 0:00:09]} 53. h5 {[%clk 0:00:16]}  Re1+ {[%clk 0:00:10]} 54. Kf2 {[%clk 0:00:15]}  Re2+ {[%clk 0:00:10]} 55. Kg1 {[%clk 0:00:16]}  Re7 {[%clk 0:00:10]} 56. h6 {[%clk 0:00:16]}  Re1+ {[%clk 0:00:06]} 57. Kf2 {[%clk 0:00:16]}  Re2+ {[%clk 0:00:07]} 58. Kg1 {[%clk 0:00:17]}  Re1+ {[%clk 0:00:08]} 59. Kf2 {[%clk 0:00:17]}  Re2+ {[%clk 0:00:09]} 60. Kg1 {[%clk 0:00:18]}  Re1+ {[%clk 0:00:09]} 1/2-1/2


[Site "https://www.chess.com"]

[Event "Titled Tuesday Blitz April 12 Late 2022"]
[White "Schekachikhin, Maksim"]
[Black "Paravyan, David"]
[WhiteFideId "24177830"]
[BlackFideId "4194985"]
[WhiteElo "2230"]
[BlackElo "2569"]
[Result "0-1"]
[Round "03"]
[TimeControl "180+1"]
[Date "2022.04.12"]
[WhiteClock "0:00:03"]
[BlackClock "0:00:08"]

1. d4 {[%clk 0:03:00]}  Nf6 {[%clk 0:02:57]} 2. c4 {[%clk 0:03:00]}  g6 {[%clk 0:02:58]} 3. Nc3 {[%clk 0:02:59]}  d5 {[%clk 0:02:58]} 4. cxd5 {[%clk 0:02:56]}  Nxd5 {[%clk 0:02:59]} 5. Bd2 {[%clk 0:02:56]}  Bg7 {[%clk 0:02:59]} 6. e4 {[%clk 0:02:56]}  Nxc3 {[%clk 0:02:59]} 7. Bxc3 {[%clk 0:02:55]}  O-O {[%clk 0:03:00]} 8. Qd2 {[%clk 0:02:55]}  c5 {[%clk 0:02:56]} 9. d5 {[%clk 0:02:54]}  e6 {[%clk 0:02:57]} 10. Bc4 {[%clk 0:02:52]}  Bxc3 {[%clk 0:02:56]} 11. bxc3 {[%clk 0:02:53]}  b5 {[%clk 0:02:54]} 12. Bxb5 {[%clk 0:02:47]}  exd5 {[%clk 0:02:54]} 13. exd5 {[%clk 0:02:44]}  a6 {[%clk 0:02:54]} 14. Be2 {[%clk 0:02:36]}  Nd7 {[%clk 0:02:54]} 15. Nf3 {[%clk 0:02:34]}  Nf6 {[%clk 0:02:54]} 16. c4 {[%clk 0:02:32]}  Ne4 {[%clk 0:02:52]} 17. Qc2 {[%clk 0:02:27]}  Qa5+ {[%clk 0:02:49]} 18. Kf1 {[%clk 0:02:27]}  Bf5 {[%clk 0:01:46]} 19. Bd3 {[%clk 0:02:26]}  Rfe8 {[%clk 0:01:46]} 20. h4 {[%clk 0:02:24]}  h5 {[%clk 0:01:41]} 21. Ng5 {[%clk 0:02:11]}  Nd6 {[%clk 0:00:36]} 22. g3 {[%clk 0:01:24]}  Qa3 {[%clk 0:00:35]} 23. Bxf5 {[%clk 0:01:21]}  Nxf5 {[%clk 0:00:36]} 24. Qb3 {[%clk 0:01:12]}  Qa5 {[%clk 0:00:32]} 25. Kg2 {[%clk 0:01:07]}  Re2 {[%clk 0:00:31]} 26. Qd3 {[%clk 0:00:43]}  Rae8 {[%clk 0:00:27]} 27. d6 {[%clk 0:00:33]}  Rd2 {[%clk 0:00:25]} 28. Qf3 {[%clk 0:00:30]}  Ree2 {[%clk 0:00:22]} 29. Rhf1 {[%clk 0:00:25]}  Nxd6 {[%clk 0:00:17]} 30. Kg1 {[%clk 0:00:22]}  Nf5 {[%clk 0:00:15]} 31. Qa8+ {[%clk 0:00:21]}  Kg7 {[%clk 0:00:15]} 32. Qb7 {[%clk 0:00:20]}  Re7 {[%clk 0:00:15]} 33. Qb3 {[%clk 0:00:17]}  Nd4 {[%clk 0:00:14]} 34. Qb8 {[%clk 0:00:14]}  Ne2+ {[%clk 0:00:13]} 35. Kg2 {[%clk 0:00:13]}  Qc7 {[%clk 0:00:10]} 36. Qxc7 {[%clk 0:00:12]}  Rxc7 {[%clk 0:00:11]} 37. Rfd1 {[%clk 0:00:13]}  Rcd7 {[%clk 0:00:11]} 38. Rxd2 {[%clk 0:00:13]}  Rxd2 {[%clk 0:00:12]} 39. Ne4 {[%clk 0:00:12]}  Rc2 {[%clk 0:00:09]} 40. Nxc5 {[%clk 0:00:12]}  a5 {[%clk 0:00:07]} 41. a4 {[%clk 0:00:08]}  Rxc4 {[%clk 0:00:07]} 42. Nb3 {[%clk 0:00:08]}  Rb4 {[%clk 0:00:04]} 43. Nxa5 {[%clk 0:00:08]}  Nc3 {[%clk 0:00:04]} 44. Nc6 {[%clk 0:00:07]}  Rxa4 {[%clk 0:00:05]} 45. Rxa4 {[%clk 0:00:07]}  Nxa4 {[%clk 0:00:06]} 46. Kf3 {[%clk 0:00:08]}  Nc5 {[%clk 0:00:06]} 47. Nd4 {[%clk 0:00:07]}  Nd7 {[%clk 0:00:06]} 48. g4 {[%clk 0:00:06]}  Ne5+ {[%clk 0:00:06]} 49. Kg3 {[%clk 0:00:07]}  Nxg4 {[%clk 0:00:06]} 50. f3 {[%clk 0:00:07]}  Nh6 {[%clk 0:00:07]} 51. Kf4 {[%clk 0:00:06]}  Kf6 {[%clk 0:00:08]} 52. Nc6 {[%clk 0:00:07]}  Nf5 {[%clk 0:00:08]} 53. Nb4 {[%clk 0:00:04]}  Nxh4 {[%clk 0:00:07]} 54. Nd5+ {[%clk 0:00:04]}  Kg7 {[%clk 0:00:08]} 55. Kg3 {[%clk 0:00:02]}  Nf5+ {[%clk 0:00:08]} 56. Kf4 {[%clk 0:00:02]}  Nd4 {[%clk 0:00:08]} 57. Ne3 {[%clk 0:00:01]}  Ne6+ {[%clk 0:00:08]} 58. Kg3 {[%clk 0:00:01]}  Kf6 {[%clk 0:00:08]} 59. Kh3 {[%clk 0:00:01]}  Kg5 {[%clk 0:00:08]} 60. Kg3 {[%clk 0:00:02]}  h4+ {[%clk 0:00:08]} 61. Kh3 {[%clk 0:00:02]}  Nf4+ {[%clk 0:00:08]} 62. Kh2 {[%clk 0:00:03]}  Ne6 {[%clk 0:00:08]} 63. Nd5 {[%clk 0:00:03]}  Nd4 {[%clk 0:00:08]} 64. Kh3 {[%clk 0:00:03]}  Nxf3 {[%clk 0:00:08]} 0-1


[Site "https://www.chess.com"]

[Event "Titled Tuesday Blitz April 12 Late 2022"]
[White "Sellitti, Federico"]
[Black "Broca Jimenez, Fernando"]
[WhiteFideId "821829"]
[BlackFideId "5104742"]
[WhiteElo "2560"]
[BlackElo "2062"]
[Result "0-1"]
[Round "03"]
[TimeControl "180+1"]
[Date "2022.04.13"]
[WhiteClock "0:00:02"]
[BlackClock "0:00:29"]

1. e4 {[%clk 0:03:00]}  c5 {[%clk 0:02:58]} 2. Nc3 {[%clk 0:03:01]}  g6 {[%clk 0:02:55]} 3. g3 {[%clk 0:03:01]}  Bg7 {[%clk 0:02:56]} 4. Bg2 {[%clk 0:03:02]}  Nc6 {[%clk 0:02:55]} 5. d3 {[%clk 0:03:02]}  e6 {[%clk 0:02:52]} 6. Be3 {[%clk 0:03:02]}  b6 {[%clk 0:02:51]} 7. Qd2 {[%clk 0:03:02]}  Nge7 {[%clk 0:02:51]} 8. Bh6 {[%clk 0:03:01]}  O-O {[%clk 0:02:52]} 9. h4 {[%clk 0:03:01]}  d5 {[%clk 0:02:50]} 10. h5 {[%clk 0:02:58]}  d4 {[%clk 0:02:42]} 11. Nce2 {[%clk 0:02:53]}  e5 {[%clk 0:02:19]} 12. Bxg7 {[%clk 0:02:49]}  Kxg7 {[%clk 0:02:20]} 13. hxg6 {[%clk 0:02:50]}  hxg6 {[%clk 0:02:20]} 14. Qh6+ {[%clk 0:02:49]}  Kf6 {[%clk 0:02:21]} 15. f4 {[%clk 0:01:55]}  Ke6 {[%clk 0:02:15]} 16. Nf3 {[%clk 0:01:41]}  Kd6 {[%clk 0:01:45]} 17. fxe5+ {[%clk 0:01:41]}  Kc7 {[%clk 0:01:45]} 18. O-O-O {[%clk 0:01:22]}  Bg4 {[%clk 0:01:39]} 19. Qf4 {[%clk 0:01:16]}  Be6 {[%clk 0:01:31]} 20. Ng5 {[%clk 0:01:09]}  Kb7 {[%clk 0:01:31]} 21. Qd2 {[%clk 0:00:52]}  Bxa2 {[%clk 0:01:04]} 22. b3 {[%clk 0:00:45]}  a5 {[%clk 0:01:03]} 23. Kb2 {[%clk 0:00:40]}  a4 {[%clk 0:01:03]} 24. Ra1 {[%clk 0:00:36]}  axb3 {[%clk 0:01:01]} 25. cxb3 {[%clk 0:00:35]}  Nb4 {[%clk 0:01:01]} 26. e6 {[%clk 0:00:26]}  Ra5 {[%clk 0:00:52]} 27. exf7 {[%clk 0:00:20]}  Ka7 {[%clk 0:00:52]} 28. Ne6 {[%clk 0:00:20]}  Qc8 {[%clk 0:00:42]} 29. Nxf8 {[%clk 0:00:19]}  Qxf8 {[%clk 0:00:43]} 30. Rhf1 {[%clk 0:00:19]}  Nec6 {[%clk 0:00:43]} 31. Nc1 {[%clk 0:00:19]}  Ne5 {[%clk 0:00:42]} 32. Rxa2 {[%clk 0:00:12]}  Nxa2 {[%clk 0:00:41]} 33. Nxa2 {[%clk 0:00:13]}  Kb8 {[%clk 0:00:39]} 34. Nc1 {[%clk 0:00:10]}  Ra7 {[%clk 0:00:38]} 35. Qf4 {[%clk 0:00:10]}  Re7 {[%clk 0:00:37]} 36. Qf6 {[%clk 0:00:10]}  Kc7 {[%clk 0:00:36]} 37. b4 {[%clk 0:00:08]}  Nxf7 {[%clk 0:00:36]} 38. Nb3 {[%clk 0:00:07]}  Qe8 {[%clk 0:00:33]} 39. bxc5 {[%clk 0:00:06]}  bxc5 {[%clk 0:00:34]} 40. e5 {[%clk 0:00:06]}  Nxe5 {[%clk 0:00:31]} 41. Rd1 {[%clk 0:00:02]}  c4 {[%clk 0:00:28]} 42. dxc4 {[%clk 0:00:02]}  Nxc4+ {[%clk 0:00:29]} 0-1


[Site "https://www.chess.com"]

[Event "Titled Tuesday Blitz April 12 Late 2022"]
[White "Senthilkumar, Pranav"]
[Black "Cagara, Paulina"]
[WhiteFideId "2083477"]
[BlackFideId "1124870"]
[WhiteElo "2402"]
[BlackElo "1780"]
[Result "0-1"]
[Round "03"]
[TimeControl "180+1"]
[Date "2022.04.13"]
[WhiteClock "0:01:07"]
[BlackClock "0:02:03"]

1. d4 {[%clk 0:03:00]}  f5 {[%clk 0:02:59]} 2. Nf3 {[%clk 0:02:51]}  Nf6 {[%clk 0:02:58]} 3. g3 {[%clk 0:02:51]}  g6 {[%clk 0:02:57]} 4. Bg2 {[%clk 0:02:52]}  Bg7 {[%clk 0:02:57]} 5. O-O {[%clk 0:02:53]}  O-O {[%clk 0:02:56]} 6. c4 {[%clk 0:02:54]}  d6 {[%clk 0:02:56]} 7. Nc3 {[%clk 0:02:55]}  Qe8 {[%clk 0:02:57]} 8. b3 {[%clk 0:02:55]}  c5 {[%clk 0:02:54]} 9. dxc5 {[%clk 0:02:52]}  Ne4 {[%clk 0:02:54]} 10. Nxe4 {[%clk 0:02:46]}  Bxa1 {[%clk 0:02:53]} 11. Bh6 {[%clk 0:02:46]}  Bg7 {[%clk 0:02:51]} 12. Bxg7 {[%clk 0:02:45]}  Kxg7 {[%clk 0:02:51]} 13. Qd4+ {[%clk 0:02:42]}  e5 {[%clk 0:02:49]} 14. Qxd6 {[%clk 0:02:29]}  fxe4 {[%clk 0:02:48]} 15. Nxe5 {[%clk 0:02:17]}  Nc6 {[%clk 0:02:44]} 16. Nxc6 {[%clk 0:02:15]}  Qxc6 {[%clk 0:02:42]} 17. Qd4+ {[%clk 0:02:15]}  Qf6 {[%clk 0:02:41]} 18. Qxe4 {[%clk 0:02:13]}  Bf5 {[%clk 0:02:40]} 19. Qxb7+ {[%clk 0:02:13]}  Qf7 {[%clk 0:02:39]} 20. Qa6 {[%clk 0:02:02]}  Rae8 {[%clk 0:02:33]} 21. e3 {[%clk 0:01:46]}  Be4 {[%clk 0:02:31]} 22. Bxe4 {[%clk 0:01:44]}  Rxe4 {[%clk 0:02:30]} 23. Qc6 {[%clk 0:01:43]}  Rxe3 {[%clk 0:02:23]} 24. Qd6 {[%clk 0:01:32]}  Re6 {[%clk 0:02:16]} 25. Qd4+ {[%clk 0:01:30]}  Qf6 {[%clk 0:02:16]} 26. Qd7+ {[%clk 0:01:29]}  Rf7 {[%clk 0:02:16]} 27. Qc8 {[%clk 0:01:29]}  Re1 {[%clk 0:02:12]} 28. f4 {[%clk 0:01:20]}  Rxf1+ {[%clk 0:02:11]} 29. Kxf1 {[%clk 0:01:21]}  g5 {[%clk 0:02:08]} 30. c6 {[%clk 0:01:16]}  gxf4 {[%clk 0:02:08]} 31. g4 {[%clk 0:01:17]}  f3 {[%clk 0:02:05]} 32. c7 {[%clk 0:01:14]}  Qa1+ {[%clk 0:02:04]} 33. Kf2 {[%clk 0:01:13]}  Qb2+ {[%clk 0:02:04]} 34. Kg3 {[%clk 0:01:05]}  Qg2+ {[%clk 0:02:04]} 35. Kh4 {[%clk 0:01:06]}  Qxh2+ {[%clk 0:02:03]} 36. Kg5 {[%clk 0:01:07]}  Qh6# {[%clk 0:02:03]} 0-1


[Site "https://www.chess.com"]

[Event "Titled Tuesday Blitz April 12 Late 2022"]
[White "Sheng, Joshua"]
[Black "Barria Zuniga, Daniel"]
[WhiteFideId "2057360"]
[BlackFideId "3400816"]
[WhiteElo "2142"]
[BlackElo "2414"]
[Result "1-0"]
[Round "03"]
[TimeControl "180+1"]
[Date "2022.04.12"]
[WhiteClock "0:01:58"]
[BlackClock "0:01:33"]

1. e4 {[%clk 0:02:56]}  e6 {[%clk 0:02:58]} 2. d4 {[%clk 0:02:55]}  d5 {[%clk 0:02:57]} 3. Nc3 {[%clk 0:02:54]}  Bb4 {[%clk 0:02:57]} 4. e5 {[%clk 0:02:54]}  Ne7 {[%clk 0:02:56]} 5. a3 {[%clk 0:02:54]}  Bxc3+ {[%clk 0:02:56]} 6. bxc3 {[%clk 0:02:55]}  c5 {[%clk 0:02:56]} 7. h4 {[%clk 0:02:55]}  Qa5 {[%clk 0:02:53]} 8. Bd2 {[%clk 0:02:53]}  Qa4 {[%clk 0:02:47]} 9. h5 {[%clk 0:02:52]}  h6 {[%clk 0:02:46]} 10. Nf3 {[%clk 0:02:48]}  b6 {[%clk 0:02:44]} 11. dxc5 {[%clk 0:02:42]}  bxc5 {[%clk 0:02:43]} 12. Rh4 {[%clk 0:02:41]}  Qc6 {[%clk 0:02:39]} 13. c4 {[%clk 0:02:38]}  O-O {[%clk 0:02:33]} 14. Rg4 {[%clk 0:02:31]}  Nf5 {[%clk 0:02:19]} 15. Bd3 {[%clk 0:02:29]}  Rd8 {[%clk 0:02:18]} 16. Qc1 {[%clk 0:02:24]}  Kf8 {[%clk 0:02:06]} 17. Nh4 {[%clk 0:02:11]}  Nxh4 {[%clk 0:02:00]} 18. Rxh4 {[%clk 0:02:12]}  Nd7 {[%clk 0:01:58]} 19. Bxh6 {[%clk 0:01:58]}  gxh6 {[%clk 0:01:48]} 20. Qxh6+ {[%clk 0:01:59]}  Ke7 {[%clk 0:01:47]} 21. Qg5+ {[%clk 0:01:59]}  f6 {[%clk 0:01:33]} 22. Qg7+ {[%clk 0:01:58]} 1-0


[Site "https://www.chess.com"]

[Event "Titled Tuesday Blitz April 12 Late 2022"]
[White "Silvestre, Christian"]
[Black "Tillyaev, Ulugbek"]
[WhiteFideId "30956269"]
[BlackFideId "14202441"]
[WhiteElo "2430"]
[BlackElo "2628"]
[Result "0-1"]
[Round "03"]
[TimeControl "180+1"]
[Date "2022.04.13"]
[WhiteClock "0:00:07"]
[BlackClock "0:01:25"]

1. e4 {[%clk 0:02:59]}  Nf6 {[%clk 0:02:59]} 2. e5 {[%clk 0:02:59]}  Nd5 {[%clk 0:02:53]} 3. d4 {[%clk 0:02:59]}  d6 {[%clk 0:02:53]} 4. Nf3 {[%clk 0:02:58]}  Bg4 {[%clk 0:02:53]} 5. exd6 {[%clk 0:02:54]}  cxd6 {[%clk 0:02:51]} 6. Be2 {[%clk 0:02:54]}  g6 {[%clk 0:02:50]} 7. h3 {[%clk 0:02:54]}  Bf5 {[%clk 0:02:48]} 8. c4 {[%clk 0:02:52]}  Nb4 {[%clk 0:02:47]} 9. Qa4+ {[%clk 0:02:46]}  N8c6 {[%clk 0:02:46]} 10. Na3 {[%clk 0:02:31]}  Nd3+ {[%clk 0:02:42]} 11. Bxd3 {[%clk 0:02:19]}  Bxd3 {[%clk 0:02:43]} 12. d5 {[%clk 0:02:17]}  Qa5+ {[%clk 0:02:42]} 13. Qxa5 {[%clk 0:02:17]}  Nxa5 {[%clk 0:02:43]} 14. Kd2 {[%clk 0:01:26]}  Bxc4 {[%clk 0:02:41]} 15. b4 {[%clk 0:01:23]}  Bxd5 {[%clk 0:02:30]} 16. bxa5 {[%clk 0:01:23]}  Bg7 {[%clk 0:02:31]} 17. Rb1 {[%clk 0:01:17]}  O-O {[%clk 0:02:24]} 18. Bb2 {[%clk 0:01:16]}  Bh6+ {[%clk 0:02:24]} 19. Kd3 {[%clk 0:01:12]}  Bxa2 {[%clk 0:02:23]} 20. Ra1 {[%clk 0:01:09]}  Be6 {[%clk 0:02:23]} 21. g4 {[%clk 0:01:07]}  Rac8 {[%clk 0:02:22]} 22. g5 {[%clk 0:01:05]}  Bf5+ {[%clk 0:02:21]} 23. Ke3 {[%clk 0:01:02]}  Bg7 {[%clk 0:02:20]} 24. Bxg7 {[%clk 0:01:03]}  Kxg7 {[%clk 0:02:21]} 25. Rac1 {[%clk 0:00:58]}  Rxc1 {[%clk 0:02:12]} 26. Rxc1 {[%clk 0:00:58]}  Bxh3 {[%clk 0:02:12]} 27. Rc7 {[%clk 0:00:56]}  Rc8 {[%clk 0:02:13]} 28. Rxc8 {[%clk 0:00:36]}  Bxc8 {[%clk 0:02:14]} 29. Nd4 {[%clk 0:00:29]}  f6 {[%clk 0:02:11]} 30. f4 {[%clk 0:00:28]}  h6 {[%clk 0:02:02]} 31. gxf6+ {[%clk 0:00:27]}  Kxf6 {[%clk 0:02:02]} 32. Nab5 {[%clk 0:00:27]}  a6 {[%clk 0:02:01]} 33. Nc3 {[%clk 0:00:27]}  e6 {[%clk 0:02:01]} 34. Nb3 {[%clk 0:00:25]}  Bd7 {[%clk 0:01:59]} 35. Nd4 {[%clk 0:00:21]}  Be8 {[%clk 0:01:45]} 36. Ne4+ {[%clk 0:00:21]}  Ke7 {[%clk 0:01:45]} 37. Nc3 {[%clk 0:00:20]}  d5 {[%clk 0:01:28]} 38. Nf3 {[%clk 0:00:19]}  Kd6 {[%clk 0:01:28]} 39. Kd4 {[%clk 0:00:18]}  g5 {[%clk 0:01:25]} 40. fxg5 {[%clk 0:00:17]}  hxg5 {[%clk 0:01:26]} 41. Ne5 {[%clk 0:00:12]}  Bh5 {[%clk 0:01:26]} 42. Na4 {[%clk 0:00:10]}  g4 {[%clk 0:01:26]} 43. Nb6 {[%clk 0:00:06]}  g3 {[%clk 0:01:26]} 44. Nc8+ {[%clk 0:00:07]}  Kc7 {[%clk 0:01:26]} 45. Nb6 {[%clk 0:00:07]}  g2 {[%clk 0:01:25]} 0-1


[Site "https://www.chess.com"]

[Event "Titled Tuesday Blitz April 12 Late 2022"]
[White "Song, Michael"]
[Black "Phillips, Rene"]
[WhiteFideId "2613190"]
[BlackFideId "2056275"]
[WhiteElo "2274"]
[BlackElo "2136"]
[Result "1-0"]
[Round "03"]
[TimeControl "180+1"]
[Date "2022.04.13"]
[WhiteClock "0:00:16"]
[BlackClock "0:00:07"]

1. e4 {[%clk 0:03:00]}  Nc6 {[%clk 0:03:00]} 2. d4 {[%clk 0:02:59]}  d5 {[%clk 0:03:00]} 3. e5 {[%clk 0:02:56]}  f6 {[%clk 0:03:01]} 4. f4 {[%clk 0:02:53]}  Nh6 {[%clk 0:03:00]} 5. Bb5 {[%clk 0:02:49]}  Bg4 {[%clk 0:03:00]} 6. Nf3 {[%clk 0:02:47]}  Qd7 {[%clk 0:03:00]} 7. h3 {[%clk 0:02:45]}  Bxf3 {[%clk 0:02:58]} 8. Qxf3 {[%clk 0:02:46]}  Nf5 {[%clk 0:02:56]} 9. Qf2 {[%clk 0:02:40]}  h5 {[%clk 0:02:52]} 10. Be3 {[%clk 0:02:34]}  a6 {[%clk 0:02:51]} 11. Bd3 {[%clk 0:02:23]}  h4 {[%clk 0:02:34]} 12. c3 {[%clk 0:02:19]}  O-O-O {[%clk 0:02:31]} 13. Nd2 {[%clk 0:02:18]}  Ng3 {[%clk 0:02:27]} 14. Rg1 {[%clk 0:02:17]}  f5 {[%clk 0:02:26]} 15. Nf1 {[%clk 0:02:10]}  Ne4 {[%clk 0:02:23]} 16. Qe2 {[%clk 0:02:05]}  e6 {[%clk 0:02:20]} 17. Nd2 {[%clk 0:01:56]}  Ng3 {[%clk 0:02:18]} 18. Qd1 {[%clk 0:01:54]}  Na7 {[%clk 0:02:08]} 19. a4 {[%clk 0:01:53]}  Kb8 {[%clk 0:02:03]} 20. b4 {[%clk 0:01:51]}  Qc6 {[%clk 0:01:55]} 21. Qb3 {[%clk 0:01:42]}  b5 {[%clk 0:01:42]} 22. Kf2 {[%clk 0:01:18]}  Be7 {[%clk 0:01:34]} 23. Nf3 {[%clk 0:01:13]}  Kb7 {[%clk 0:01:25]} 24. Ra3 {[%clk 0:01:11]}  Ra8 {[%clk 0:01:20]} 25. Rga1 {[%clk 0:01:10]}  Ne4+ {[%clk 0:01:17]} 26. Kg1 {[%clk 0:01:09]}  Ng3 {[%clk 0:00:45]} 27. Qa2 {[%clk 0:00:56]}  Qb6 {[%clk 0:00:34]} 28. Nd2 {[%clk 0:00:47]}  Ne4 {[%clk 0:00:31]} 29. Nxe4 {[%clk 0:00:21]}  fxe4 {[%clk 0:00:28]} 30. Be2 {[%clk 0:00:21]}  Rhf8 {[%clk 0:00:24]} 31. Bg4 {[%clk 0:00:20]}  g5 {[%clk 0:00:21]} 32. f5 {[%clk 0:00:18]}  exf5 {[%clk 0:00:19]} 33. Qxd5+ {[%clk 0:00:17]}  Qc6 {[%clk 0:00:18]} 34. Qxc6+ {[%clk 0:00:16]}  Nxc6 {[%clk 0:00:17]} 35. axb5 {[%clk 0:00:16]}  axb5 {[%clk 0:00:16]} 36. Rxa8 {[%clk 0:00:15]}  Rxa8 {[%clk 0:00:16]} 37. Rxa8 {[%clk 0:00:16]}  Kxa8 {[%clk 0:00:16]} 38. Bxf5 {[%clk 0:00:16]}  Ka7 {[%clk 0:00:14]} 39. Bxe4 {[%clk 0:00:16]}  Nd8 {[%clk 0:00:12]} 40. d5+ {[%clk 0:00:17]}  Kb8 {[%clk 0:00:11]} 41. Kf2 {[%clk 0:00:15]}  Nf7 {[%clk 0:00:11]} 42. Bd4 {[%clk 0:00:15]}  Nh6 {[%clk 0:00:09]} 43. Kf3 {[%clk 0:00:15]}  Bd8 {[%clk 0:00:09]} 44. Bg6 {[%clk 0:00:15]}  Ng8 {[%clk 0:00:08]} 45. Kg4 {[%clk 0:00:15]}  Ne7 {[%clk 0:00:09]} 46. Be4 {[%clk 0:00:14]}  Kc8 {[%clk 0:00:07]} 47. Be3 {[%clk 0:00:14]}  Kd7 {[%clk 0:00:07]} 48. Bxg5 {[%clk 0:00:15]}  c6 {[%clk 0:00:05]} 49. Bxe7 {[%clk 0:00:14]}  Bxe7 {[%clk 0:00:05]} 50. dxc6+ {[%clk 0:00:14]}  Kc7 {[%clk 0:00:06]} 51. Kf5 {[%clk 0:00:14]}  Bd8 {[%clk 0:00:05]} 52. Ke6 {[%clk 0:00:14]}  Bg5 {[%clk 0:00:05]} 53. Kf7 {[%clk 0:00:14]}  Bd2 {[%clk 0:00:05]} 54. e6 {[%clk 0:00:15]}  Bxc3 {[%clk 0:00:06]} 55. e7 {[%clk 0:00:15]}  Bxb4 {[%clk 0:00:07]} 56. e8=Q {[%clk 0:00:16]} 1-0


[Site "https://www.chess.com"]